fUST/lending_fUST_20251019
["ID","MTS","AMOUNT","RATE_DAILY","PERIOD"]
[391782191,1760805039773,-1068.78175628,0.00038,2]
[391782192,1760805039783,-4022.40614299,0.00038,30]
[391782193,1760805039794,-200.0,0.00038039,120]
[391782194,1760805039803,-556.00253848,0.00038065,2]
[391782195,1760805039813,-1100.0,0.00038082,7]
[391782196,1760805039822,-196.0,0.0003818,48]
[391782197,1760805039832,-7133.40835316,0.00038252,2]
[391782198,1760805039842,-200.0,0.00038259,120]
[391782199,1760805039851,-500.0,0.00038356,120]
[391782201,1760805039861,-500.0,0.00038356,120]
[391782203,1760805039870,-500.0,0.00038356,120]
[391782204,1760805039880,-500.0,0.00038356,120]
[391782205,1760805039890,-600.0,0.000384,2]
[391782206,1760805039900,-115559.32589266,0.00038511,4]
[391782208,1760805039909,-200.0,0.00038564,120]
[391782209,1760805039919,-1434.19630761,0.00038644,2]
[391782210,1760805039928,-155.675625,0.00038654,10]
[391782211,1760805039938,-221.23451577,0.0003871,6]
[391782212,1760805039947,-200.0,0.00038711,120]
[391782213,1760805039958,-3909.73,0.00038756,120]
[391782214,1760805039967,-160.0,0.00038788,5]
[391782215,1760805039977,-4631.58,0.000388,14]
[391782216,1760805039987,-600.0,0.000388,2]
[391782217,1760805040099,-1100.0,0.00038904,7]
[391782218,1760805040111,-6147.02177027,0.00038945,3]
[391782219,1760805040122,-437.45655618,0.00038945,3]
[391782220,1760805040131,-631.0,0.00038958,2]
[391782221,1760805040141,-2162.0,0.00038958,2]
[391782222,1760805040153,-411.0,0.00038958,2]
[391782223,1760805040163,-1434.19630761,0.00038958,2]
[391782224,1760805040173,-6147.02177027,0.0003898,3]
[391782225,1760805040182,-437.45655618,0.0003898,3]
[391782226,1760805040192,-23091.04680233,0.00038987,30]
[391782227,1760805040202,-500.0,0.00039,30]
[391782228,1760805040212,-74984.78719534,0.00039,30]
[391782230,1760805040223,-211.92108182,0.00039,120]
[391782231,1760805040235,-200.0,0.00039304,120]
[391782232,1760805040244,-1434.19630761,0.00039364,2]
[391782233,1760805040254,-500.0,0.00039366,5]
[391782234,1760805040265,-151.0,0.000394,14]
[391782235,1760805040276,-200.0,0.00039429,120]
[391782236,1760805040285,-1434.19630764,0.00039468,2]
[391782237,1760805040295,-960.62271974,0.00039548,30]
[391782238,1760805040307,-151.0,0.000397,14]
[391782239,1760805040317,-845.22,0.000397,24]
[391782240,1760805040328,-200.0,0.0003971,120]
[391782241,1760805040337,-200.0,0.0003971,120]
[391782242,1760805040347,-200.0,0.0003971,120]
[391782243,1760805040357,-800.0,0.00039713,7]
[391782244,1760805040367,-3909.73,0.00039715,120]
[391782245,1760805040377,-1100.0,0.00039726,7]
[391782246,1760805040387,-6147.02177027,0.00039765,3]
[391782247,1760805040397,-437.45655618,0.00039765,3]
[391782248,1760805040409,-800.0,0.00039771,7]
[391782249,1760805040418,-160.73098143,0.00039775,2]
[391782250,1760805040428,-642.92392572,0.00039775,2]
[391782251,1760805040438,-1446.57883287,0.00039775,2]
[391782252,1760805040447,-2571.69570288,0.00039775,2]
[391782253,1760805040456,-4018.27453576,0.00039775,2]
[391782254,1760805040465,-5786.31533149,0.00039775,2]
[391782255,1760805040475,-169.63313882,0.00039775,2]
[391782256,1760805040486,-305.33964987,0.00039775,2]
[391782257,1760805040495,-426.22577505,0.00039775,2]
[391782258,1760805040505,-896.45707677,0.00039778,7]
[391782259,1760805040515,-800.0,0.00039784,7]
[391782260,1760805040524,-800.0,0.00039785,7]
[391782261,1760805040534,-421.14647088,0.00039791,7]
[391782262,1760805040544,-800.0,0.00039793,7]
[391782263,1760805040555,-800.0,0.00039798,7]
[391782264,1760805040565,-1000.0,0.000398,2]
[391782265,1760805040575,-1000.0,0.000398,2]
[391782266,1760805040585,-1000.0,0.000398,2]
[391782267,1760805040596,-1000.0,0.000398,2]
[391782268,1760805040606,-1000.0,0.000398,2]
[391782269,1760805040616,-1000.0,0.000398,2]
[391782270,1760805040626,-1000.0,0.000398,2]
[391782271,1760805040635,-1000.0,0.000398,2]
[391782272,1760805040644,-1000.0,0.000398,2]
[391782273,1760805040653,-1000.0,0.000398,2]
[391782274,1760805040663,-800.0,0.000398,7]
[391782275,1760805040673,-317.7314,0.000398,2]
[391782276,1760805040682,-800.0,0.00039807,7]
[391782277,1760805040692,-742.57308025,0.00039819,5]
[391782278,1760805040701,-2967.32202869,0.00039819,5]
[391782279,1760805040712,-849.65503258,0.00039835,7]
[391782280,1760805040723,-800.0,0.00039848,7]
[391782281,1760805040734,-800.0,0.00039883,7]
[391782282,1760805040744,-6147.02177027,0.0003989,3]
[391782283,1760805040754,-437.45655618,0.0003989,3]
[391782284,1760805040765,-800.0,0.00039894,7]
[391782285,1760805040775,-994.06023727,0.000399,120]
[391782286,1760805040786,-4179.4452708,0.000399,30]
[391782287,1760805040802,-322.46275452,0.000399,30]
[391782288,1760805040813,-836.55525642,0.000399,30]
[391782347,1760805085649,150.0,0.0002316,2]
[391782353,1760805453133,417.15472785,0.0002415,2]
[391782355,1760805734901,153.0,0.00024,120]
[391782356,1760805736536,674.829923,0.00013699,2]
[391782357,1760805736755,674.829923,0.00020187,2]
[391782359,1760805888671,150.0,0.00020042,2]
[391782360,1760805889064,150.0,0.00021864,2]
[391782361,1760805890029,150.0,0.00023686,2]
[391782363,1760805963277,150.0,0.00020063,2]
[391782364,1760805963740,150.0,0.00021887,2]
[391782365,1760805964196,150.0,0.00023711,2]
[391782366,1760805987724,500.0,0.00028198,120]
[391782367,1760806036006,150.0,0.00020177,2]
[391782368,1760806036397,150.0,0.00022011,2]
[391782369,1760806036801,150.0,0.00023845,2]
[391782370,1760806073742,417.15472785,0.0002415,2]
[391782371,1760806108634,150.0,0.00020145,2]
[391782372,1760806109068,150.0,0.00021976,2]
[391782373,1760806109506,150.0,0.00023807,2]
[391782374,1760806178463,150.0,0.00020148,2]
[391782375,1760806178885,150.0,0.0002198,2]
[391782376,1760806179315,150.0,0.00023812,2]
[391782377,1760806215025,153.0,0.00024,120]
[391782427,1760806232105,-165.37726375,0.00024657,2]
[391782429,1760806232114,-150.0,0.00024657,2]
[391782431,1760806232123,-172.5,0.00025257,2]
[391782433,1760806232132,-150.0,0.0002568,2]
[391782435,1760806232142,-195.0,0.00025857,2]
[391782437,1760806232151,-217.5,0.00026457,2]
[391782439,1760806232160,-674.829923,0.00026676,2]
[391782441,1760806232170,-150.0,0.00027514,2]
[391782443,1760806232179,-300.0,0.00027698,2]
[391782445,1760806232188,-342.0,0.00027698,2]
[391782447,1760806232197,-1348.49281325,0.00027699,2]
[391782450,1760806232217,-9443.40766012,0.00027699,2]
[391782452,1760806232226,-160.0,0.000277,2]
[391782454,1760806232236,-205.39527187,0.000277,2]
[391782456,1760806232246,-206.25203997,0.000277,2]
[391782459,1760806232255,-183.53953034,0.000277,2]
[391782462,1760806232264,-167.41556492,0.000277,2]
[391782465,1760806232274,-163.06418354,0.000277,2]
[391782468,1760806232283,-198.42014697,0.000277,2]
[391782471,1760806232291,-191.52872856,0.000277,2]
[391782474,1760806232300,-205.39527187,0.00028,2]
[391782476,1760806232309,-183.53953034,0.00028,2]
[391782478,1760806232319,-163.06418354,0.00028,2]
[391782480,1760806232328,-198.42014697,0.00028,2]
[391782482,1760806232337,-191.52872856,0.00028,2]
[391782483,1760806232346,-267.92102815,0.00028096,2]
[391782485,1760806232356,-267.92102815,0.00028096,2]
[391782487,1760806232365,-249.94409748,0.00028197,2]
[391782489,1760806232375,-211.95626448,0.00028197,2]
[391782499,1760806232491,-515.46412659,0.00028197,2]
[391782500,1760806232504,-500.0,0.00028197,2]
[391782501,1760806232514,-500.0,0.00028197,2]
[391782502,1760806232523,-500.0,0.00028197,2]
[391782503,1760806232533,-650.54279491,0.00028197,2]
[391782504,1760806232542,-326.3391301,0.00028198,7]
[391782505,1760806232551,-205.39527187,0.000282,2]
[391782506,1760806232560,-183.53953034,0.000282,2]
[391782507,1760806232572,-163.06418354,0.000282,2]
[391782508,1760806232581,-198.42014697,0.000282,2]
[391782509,1760806232591,-191.52872856,0.000282,2]
[391782510,1760806232600,-300.0,0.00028252,30]
[391782511,1760806232610,-300.0,0.00028252,30]
[391782512,1760806232619,-300.0,0.00028252,30]
[391782513,1760806232628,-300.0,0.00028252,30]
[391782514,1760806232638,-300.0,0.00028253,30]
[391782515,1760806232647,-300.0,0.00028253,30]
[391782516,1760806232656,-300.0,0.00028253,30]
[391782517,1760806232666,-300.0,0.00028253,30]
[391782518,1760806232675,-267.92102815,0.00028265,4]
[391782519,1760806232684,-267.92102815,0.00028265,4]
[391782520,1760806232694,-267.92102815,0.00028265,4]
[391782521,1760806232705,-267.92102815,0.00028265,4]
[391782522,1760806232713,-267.92102815,0.00028434,6]
[391782523,1760806232722,-267.92102815,0.00028434,6]
[391782524,1760806232734,-163.06418354,0.000285,2]
[391782525,1760806232743,-198.42014697,0.000285,2]
[391782526,1760806232752,-191.52872856,0.000285,2]
[391782527,1760806232762,-267.92102815,0.00028603,8]
[391782528,1760806232772,-267.92102815,0.00028603,8]
[391782529,1760806232782,-267.92102815,0.00028772,10]
[391782530,1760806232791,-267.92102815,0.00028772,10]
[391782531,1760806232800,-267.92102815,0.00028772,10]
[391782532,1760806232810,-267.92102815,0.00028772,10]
[391782533,1760806232819,-163.06418354,0.000288,2]
[391782534,1760806232828,-198.42014697,0.000288,2]
[391782535,1760806232838,-500.0,0.0002927,7]
[391782536,1760806232847,-153.0,0.000293,120]
[391782537,1760806232857,-150.0,0.00029307,2]
[391782538,1760806232867,-278.00126924,0.00029823,2]
[391782539,1760806232877,-500.0,0.0002987,7]
[391782540,1760806232886,-420.0,0.00029923,2]
[391782541,1760806232895,-201.522,0.00030621,26]
[391782542,1760806232905,-190.0,0.00030705,7]
[391782543,1760806232915,-150.0,0.00031139,2]
[391782544,1760806232925,-156.35,0.00031223,15]
[391782545,1760806232935,-152.05,0.00031223,15]
[391782546,1760806232944,-1000.0,0.00031225,14]
[391782547,1760806232954,-156.35,0.00031323,15]
[391782548,1760806232963,-152.05,0.00031323,15]
[391782549,1760806232972,-156.35,0.00031423,15]
[391782550,1760806232982,-152.05,0.00031423,15]
[391782551,1760806232991,-156.35,0.00031523,15]
[391782552,1760806233000,-152.05,0.00031523,15]
[391782553,1760806233010,-156.35,0.00031623,15]
[391782554,1760806233019,-152.05,0.00031623,15]
[391782555,1760806233033,-156.35,0.00031723,15]
[391782556,1760806233042,-152.05,0.00031723,15]
[391782557,1760806233051,-156.35,0.00031823,15]
[391782558,1760806233061,-152.05,0.00031823,15]
[391782559,1760806233071,-278.00126924,0.00031905,2]
[391782560,1760806233084,-156.35,0.00031923,15]
[391782561,1760806233093,-152.05,0.00031923,15]
[391782562,1760806233103,-156.35,0.00032023,15]
[391782563,1760806233112,-152.05,0.00032023,15]
[391782564,1760806233121,-156.35,0.00032123,15]
[391782565,1760806233132,-152.05,0.00032123,15]
[391782566,1760806233142,-156.35,0.00032223,15]
[391782567,1760806233152,-152.05,0.00032223,15]
[391782568,1760806233165,-156.35,0.00032323,15]
[391782569,1760806233175,-152.05,0.00032323,15]
[391782570,1760806233184,-587.0,0.00032327,2]
[391782571,1760806233194,-156.35,0.00032423,15]
[391782572,1760806233203,-152.05,0.00032423,15]
[391782573,1760806233212,-156.35,0.00032523,15]
[391782574,1760806233222,-152.05,0.00032523,15]
[391782575,1760806233231,-156.35,0.00032623,15]
[391782576,1760806233240,-152.05,0.00032623,15]
[391782577,1760806233250,-156.35,0.00032723,15]
[391782578,1760806233260,-152.05,0.00032723,15]
[391782579,1760806233270,-200.0,0.00032734,120]
[391782580,1760806233280,-200.0,0.00032743,120]
[391782581,1760806233290,-156.35,0.00032823,15]
[391782582,1760806233299,-152.05,0.00032823,15]
[391782583,1760806233309,-177.23586134,0.00032877,2]
[391782584,1760806233319,-156.35,0.00032923,60]
[391782585,1760806233328,-152.05,0.00032923,60]
[391782586,1760806233338,-156.19,0.0003297,2]
[391782587,1760806233347,-156.35,0.00033023,60]
[391782588,1760806233356,-152.05,0.00033023,60]
[391782589,1760806233366,-185.6475277,0.00033105,60]
[391782590,1760806233376,-156.36715952,0.00033123,60]
[391782591,1760806233386,-152.05,0.00033123,60]
[391782592,1760806233395,-674.829923,0.00033165,2]
[391782593,1760806233404,-152.05,0.00033223,60]
[391782594,1760806233414,-152.05,0.00033323,60]
[391782595,1760806233423,-152.05,0.00033423,60]
[391782596,1760806233432,-152.05,0.00033523,60]
[391782597,1760806233442,-152.05,0.00033623,60]
[391782598,1760806233451,-2162.0,0.00033638,2]
[391782599,1760806233461,-631.0,0.00033638,2]
[391782600,1760806233470,-150.0,0.00033638,2]
[391782601,1760806233481,-150.0,0.00033638,2]
[391782602,1760806233492,-150.0,0.00033638,2]
[391782603,1760806233501,-152.05,0.00033723,60]
[391782604,1760806233511,-152.05,0.00033823,60]
[391782605,1760806233521,-354.2229522,0.00033862,2]
[391782606,1760806233530,-500.0,0.00033891,7]
[391782607,1760806233540,-152.05,0.00033923,60]
[391782608,1760806233549,-271.45924178,0.00033957,7]
[391782609,1760806233559,-190.02146924,0.00033957,7]
[391782610,1760806233568,-250.0,0.00033957,2]
[391782611,1760806233578,-250.0,0.00033957,2]
[391782612,1760806233587,-4243.17,0.00033957,120]
[391782613,1760806233597,-191.83,0.00033957,120]
[391782614,1760806233606,-5242.98266805,0.00033958,7]
[391782615,1760806233619,-34886.56189331,0.00033958,7]
[391782627,1760806237953,-500.0,0.00028197,2]
[391782629,1760806237962,-524.12775869,0.00028197,2]
[391782630,1760806237971,-500.0,0.00028197,2]
[391782632,1760806237982,-200.0,0.000305,120]
[391782634,1760806237991,-225.31732,0.000322,120]
[391782636,1760806238000,-411.0,0.00033638,2]
[391782638,1760806238009,-143127.74543864,0.00033958,7]
[391782640,1760806238019,-150.0,0.00033962,2]
[391782642,1760806238029,-500.0,0.00033973,5]
[391782644,1760806238038,-278.00126924,0.00033988,2]
[391782646,1760806238048,-155.675625,0.00034,15]
[391782648,1760806238057,-151.0,0.00034,10]
[391782650,1760806238066,-14683.36,0.00034,14]
[391782651,1760806238078,-1001.67,0.00034,2]
[391782654,1760806238098,-152.05,0.00034023,60]
[391782656,1760806238119,-151.0,0.000341,11]
[391782657,1760806238131,-152.05,0.00034123,60]
[391782659,1760806238141,-354.22295217,0.00034127,2]
[391782661,1760806238150,-151.0,0.000342,10]
[391782662,1760806238160,-152.05,0.00034223,60]
[391782663,1760806238169,-152.05,0.00034323,60]
[391782664,1760806238181,-354.22295217,0.00034393,2]
[391782665,1760806238192,-151.0,0.000344,18]
[391782666,1760806238204,-152.05,0.00034423,60]
[391782667,1760806238216,-200.0,0.0003443,120]
[391782668,1760806238228,-151.0,0.000345,11]
[391782669,1760806238240,-186.27485546,0.00034521,5]
[391782670,1760806238253,-152.05,0.00034523,60]
[391782671,1760806238264,-151.0,0.000346,20]
[391782672,1760806238275,-153.0,0.000346,120]
[391782673,1760806238286,-500.0,0.00034607,7]
[391782674,1760806238297,-152.05,0.00034623,60]
[391782675,1760806238307,-354.22295217,0.00034658,2]
[391782676,1760806238320,-151.0,0.000347,13]
[391782677,1760806238330,-811.81,0.00034713,3]
[391782678,1760806238341,-152.05,0.00034723,60]
[391782679,1760806238352,-151.0,0.000348,13]
[391782680,1760806238363,-175.71,0.00034802,2]
[391782681,1760806238374,-270.59,0.00034813,3]
[391782682,1760806238386,-152.05,0.00034823,60]
[391782683,1760806238397,-552.26272392,0.00034849,120]
[391782684,1760806238408,-9761.18657262,0.0003489,2]
[391782685,1760806238419,-151.0,0.000349,16]
[391782686,1760806238430,-4243.17,0.00034916,120]
[391782687,1760806238442,-354.22295217,0.00034923,2]
[391782688,1760806238453,-152.05,0.00034923,60]
[391782689,1760806238464,-823.0,0.00034924,2]
[391782690,1760806238475,-150.0,0.00034973,5]
[391782691,1760806238486,-6361.66071991,0.0003498,2]
[391782692,1760806238497,-12723.3214398,0.0003498,2]
[391782693,1760806238508,-249.3502371,0.0003498,2]
[391782694,1760806238520,-23221.42940948,0.0003499,2]
[391782695,1760806238531,-76339.9286389,0.0003499,2]
[391782696,1760806238543,-1496.1014226,0.0003499,2]
[391782697,1760806238555,-1000.0,0.00034999,2]
[391782698,1760806238566,-793.50706892,0.00034999,2]
[391782699,1760806238576,-1020.52406925,0.00035,10]
[391782700,1760806238586,-566657.10437297,0.00035,5]
[391782701,1760806238598,-152.05,0.00035023,60]
[391782702,1760806238608,-5146.2,0.000351,14]
[391782703,1760806238619,-152.05,0.00035123,60]
[391782704,1760806238630,-152.05,0.00035223,60]
[391782705,1760806238640,-200.0,0.00035258,120]
[391782706,1760806238651,-152.05,0.00035323,60]
[391782707,1760806238661,-152.05,0.00035423,60]
[391782708,1760806238671,-1001.67,0.000355,2]
[391782709,1760806238682,-154.84595855,0.00035521,5]
[391782710,1760806238694,-152.05,0.00035523,60]
[391782711,1760806238705,-14683.36,0.000356,14]
[391782712,1760806238716,-152.05,0.00035623,60]
[391782713,1760806238728,-6361.66071991,0.00035673,3]
[391782714,1760806238738,-500.0,0.00035683,30]
[391782715,1760806238749,-482.99,0.000357,14]
[391782716,1760806238760,-152.05,0.00035723,60]
[391782717,1760806238771,-152.05,0.00035823,60]
[391782718,1760806238781,-4243.17,0.00035875,120]
[391782719,1760806238792,-152.05,0.00035923,60]
[391782720,1760806238802,-152.05,0.00036023,60]
[391782721,1760806238813,-278.00126924,0.0003607,2]
[391782722,1760806238823,-160.0,0.00036094,3]
[391782723,1760806238834,-152.05,0.00036123,60]
[391782724,1760806238846,-541.18,0.00036183,3]
[391782725,1760806238856,-152.4,0.00036223,60]
[391782726,1760806238866,-151.0,0.00036394,120]
[391782727,1760806238878,-9761.18657262,0.00036395,2]
[391782728,1760806238890,-155.675625,0.00036424,2]
[391782729,1760806238901,-152.08982804,0.00036634,2]
[391782730,1760806238912,-2162.0,0.00036638,2]
[391782731,1760806238923,-631.0,0.00036638,2]
[391782732,1760806238934,-150.0,0.00036638,2]
[391782733,1760806238947,-150.0,0.00036638,2]
[391782734,1760806238961,-411.0,0.00036638,2]
[391782735,1760806238973,-300.0,0.00036702,7]
[391782736,1760806238985,-5146.2,0.000368,14]
[391782737,1760806238996,-200.0,0.00036831,120]
[391782738,1760806239007,-4243.17,0.00036834,120]
[391782739,1760806239020,-200.0,0.00036984,120]
[391782740,1760806239031,-394.17742458,0.00037,120]
[391782741,1760806239043,-151.0,0.000372,12]
[391782742,1760806239055,-200.0,0.00037213,120]
[391782743,1760806239066,-500.0,0.00037339,30]
[391782744,1760806239078,-200.0,0.00037354,120]
[391782745,1760806239092,-200.0,0.00037354,120]
[391782746,1760806239103,-200.0,0.00037354,120]
[391782747,1760806239113,-1001.67,0.000374,2]
[391782748,1760806239124,-151.0,0.000376,20]
[391782749,1760806239135,-1207.45,0.000377,19]
[391782750,1760806239145,-1152.0,0.0003773,2]
[391782751,1760806239157,-221.23451577,0.00037769,5]
[391782752,1760806239170,-6361.66071991,0.0003779,3]
[391782753,1760806239182,-4243.17,0.00037793,120]
[391782754,1760806239193,-14683.36,0.000378,14]
[391782755,1760806239204,-8273.00685909,0.000379,2]
[391782756,1760806239216,-9761.18657262,0.000379,2]
[391782757,1760806239227,-6361.66071991,0.0003798,3]
[391782758,1760806239240,-12723.3214398,0.0003799,3]
[391782759,1760806239252,-249.3502371,0.0003799,3]
[391782760,1760806239265,-576127.78547659,0.00038,5]
[391782761,1760806239280,-5249.53280851,0.00038,5]
[391782762,1760806239293,-10150.80595936,0.00038,5]
[391782763,1760806239304,-3625.74649517,0.00038,5]
[391782764,1760806239316,-2917.19,0.00038,5]
[391782766,1760806239624,-2386.2,0.00038,5]
[391783105,1760806267846,417.15472785,0.00024,3]
[391783106,1760806295914,417.15472785,0.00024,3]
[391783127,1760806692120,417.15472785,0.0002415,2]
[391783137,1760807199758,153.69168577,0.00024,3]
[391783138,1760807280627,263.4,0.00015105,2]
[391783139,1760807313570,417.15472785,0.0002415,2]
[391783140,1760807387990,3480.33010113,0.0002415,2]
[391783141,1760807388013,10000.01,0.0002415,2]
[391783142,1760807388039,6524.56989887,0.0002415,2]
[391783143,1760807389942,500.0,0.00033981,120]
[391783144,1760807390169,500.0,0.00033981,120]
[391783145,1760807390400,500.0,0.00033981,120]
[391783146,1760807390639,500.0,0.00033981,120]
[391783147,1760807390860,500.0,0.00033981,120]
[391783148,1760807391109,500.0,0.00033981,120]
[391783149,1760807391372,500.0,0.00033981,120]
[391783150,1760807391635,500.0,0.00033981,120]
[391783151,1760807391896,500.0,0.00033981,120]
[391783152,1760807392150,500.0,0.00033981,120]
[391783153,1760807392401,500.0,0.00033981,120]
[391783154,1760807392644,500.0,0.00033981,120]
[391783155,1760807392886,488.94000012,0.00033981,120]
[391783156,1760807414651,164.0,0.00024,120]
[391783187,1760807432170,-150.0,0.00025205,2]
[391783189,1760807432179,-106.04000004,0.00025805,2]
[391783198,1760807432276,-66.45999996,0.00025805,2]
[391783200,1760807432286,-195.0,0.00026405,2]
[391783202,1760807432296,-979.54,0.00027,2]
[391783204,1760807432306,-217.5,0.00027005,2]
[391783205,1760807432315,-2404.52486644,0.00027522,2]
[391783207,1760807432325,-166.154862,0.00027522,2]
[391783210,1760807432335,-166.154862,0.00027522,18]
[391783213,1760807432344,-166.154862,0.00027522,35]
[391783215,1760807432353,-166.154862,0.00027522,52]
[391783217,1760807432364,-166.154862,0.00027522,69]
[391783220,1760807432373,-166.154862,0.00027522,86]
[391783223,1760807432383,-166.154862,0.00027522,103]
[391783225,1760807432394,-166.154862,0.00027522,119]
[391783227,1760807432403,-240.0,0.00027605,2]
[391783229,1760807432414,-300.0,0.00027698,2]
[391783231,1760807432424,-300.0,0.00027698,2]
[391783233,1760807432433,-300.0,0.00027698,2]
[391783235,1760807432442,-366.10523086,0.000277,2]
[391783237,1760807432451,-621.63811803,0.000277,2]
[391783238,1760807432461,-211.57054545,0.000277,2]
[391783241,1760807432471,-171.77856897,0.000277,2]
[391783243,1760807432480,-197.10552313,0.000277,2]
[391783245,1760807432490,-175.61074947,0.000277,2]
[391783247,1760807432499,-804.37022582,0.000277,2]
[391783248,1760807432508,-182.31176689,0.000277,2]
[391783251,1760807432518,-200.14769554,0.000277,2]
[391783253,1760807432527,-190.62033039,0.000277,2]
[391783255,1760807432537,-323.7863823,0.000277,2]
[391783257,1760807432547,-160.0,0.00027715,2]
[391783259,1760807432556,-402.78104431,0.00027715,2]
[391783260,1760807432565,-160.0,0.00027715,2]
[391783263,1760807432575,-614.61,0.000279,2]
[391783265,1760807432585,-314.0,0.00027945,2]
[391783267,1760807432594,-366.10523086,0.00028,2]
[391783269,1760807432603,-621.63811803,0.00028,2]
[391783271,1760807432612,-171.77856897,0.00028,2]
[391783273,1760807432622,-197.10552313,0.00028,2]
[391783275,1760807432633,-175.61074947,0.00028,2]
[391783277,1760807432642,-804.37022582,0.00028,2]
[391783279,1760807432651,-182.31176689,0.00028,2]
[391783280,1760807432661,-200.14769554,0.00028,2]
[391783282,1760807432671,-323.7863823,0.00028,2]
[391783284,1760807432684,-500.0,0.00028027,2]
[391783286,1760807432693,-366.10523086,0.000282,2]
[391783288,1760807432702,-621.63811803,0.000282,2]
[391783290,1760807432711,-171.77856897,0.000282,2]
[391783292,1760807432720,-197.10552313,0.000282,2]
[391783294,1760807432729,-175.61074947,0.000282,2]
[391783296,1760807432739,-804.37022582,0.000282,2]
[391783298,1760807432757,-182.31176689,0.000282,2]
[391783300,1760807432767,-262.5,0.00028205,2]
[391783302,1760807432777,-323.7863823,0.000283,2]
[391783304,1760807432787,-366.10523086,0.000285,2]
[391783306,1760807432797,-621.63811803,0.000285,2]
[391783308,1760807432806,-197.10552313,0.000285,2]
[391783310,1760807432816,-175.61074947,0.000285,2]
[391783312,1760807432825,-804.37022582,0.000285,2]
[391783314,1760807432834,-1000.0,0.00028575,2]
[391783316,1760807432844,-323.7863823,0.000286,2]
[391783318,1760807432853,-366.10523086,0.000288,2]
[391783320,1760807432862,-621.63811803,0.000288,2]
[391783322,1760807432871,-175.61074947,0.000288,2]
[391783324,1760807432880,-804.37022582,0.000288,2]
[391783326,1760807432889,-323.7863823,0.000288,2]
[391783328,1760807432898,-285.0,0.00028805,2]
[391783330,1760807432907,-960.62271974,0.00028822,7]
[391783332,1760807432917,-307.5,0.00029405,2]
[391783334,1760807432926,-318.8341922,0.000299,2]
[391783336,1760807432935,-420.0,0.00029923,2]
[391783338,1760807432944,-330.0,0.00030005,2]
[391783340,1760807432954,-160.0,0.0003004,2]
[391783342,1760807432963,-500.0,0.00030076,7]
[391783344,1760807432973,-260.0,0.00030588,2]
[391783346,1760807432983,-164.0,0.000306,120]
[391783348,1760807432992,-225.78861876,0.00030605,2]
[391783350,1760807433002,-360.0,0.00031136,2]
[391783352,1760807433011,-152.05,0.00031241,15]
[391783354,1760807433020,-152.07,0.00031306,15]
[391783356,1760807433030,-152.05,0.00031341,15]
[391783358,1760807433039,-500.0,0.00031361,7]
[391783360,1760807433049,-152.07,0.00031406,15]
[391783362,1760807433059,-152.05,0.00031441,15]
[391783364,1760807433068,-152.07,0.00031506,15]
[391783366,1760807433077,-152.05,0.00031541,15]
[391783368,1760807433087,-152.07,0.00031606,15]
[391783371,1760807433096,-152.05,0.00031641,15]
[391783373,1760807433106,-460.0,0.00031684,2]
[391783375,1760807433118,-152.07,0.00031706,15]
[391783377,1760807433128,-152.05,0.00031741,15]